Workbook

Sheet Sheet1
A1: USDA - RUS | I1: OMB No.
I2: 0572-0157
A3: SUMMARY OF INFORMATION COLLECTION | C3: 7 CFR 1775 Technical Assistance and Construction for Innovative Regional Wastewater Treatment Solutions grant program | I3: Date Prepared
I4: July 2024
A5: INSTRUCTIONS: | E5: > | F5: (f) TOTAL | H5: (h) TOTAL
A6: Use this form when a single information collection document involves multiple reporting and | E6: > | F6: - | G6: = (e) Average | H6: - | I6: = (g) Average | J6: - | K6: = (j) Average
A7: recordkeeping requirements. | E7: > | F7: (d) TOTAL | H7: (f) TOTAL | J7: (i) TOTAL
A8: IDENTIFICATION OF REPORTING AND RECORDKEEPPING REQUIREMENTS | G8: ANNUAL BURDEN
C9: FORM | F9: REPORTS | J9: RECORDS
C10: NO(s) | D10: NO. OF | E10: NO. OF | F10: TOTAL | G10: HOURS | H10: TOTAL | I10: NO. OF | J10: ANNUAL | K10: TOTAL
A11: SECTION OF | C11: (If "none" | D11: RESPON- | E11: RESPONSES | F11: ANNUAL | G11: PER | H11: HOURS | I11: RECORD- | J11: HOURS PER | K11: RECORD-
A12: REGULATIONS | B12: DESCRIPTION | C12: so state) | D12: DENTS | E12: PER | F12: RESPONSES | G12: RESPONSE | H12: (F x G) | I12: KEEPERS | J12: RECORD- | K12: KEEPING
E13: RESPON- | F13: (D x E) | J13: KEEPER | K13: HOURS
E14: DENT | K14: (Col. i & j)
A15: (a) | B15: (b) | C15: (c) | D15: (d) | E15: (e) | F15: (f) | G15: (g) | H15: (h) | I15: (i) | J15: (j) | K15: (k)
B16: Items Cleared Under This OMB Control Numbe *
B18: Initial Application/Application Process
A19: 1775.10(c)(6) | B19: Documentation of Assistance Provided to Rural Development Employees | C19: Written | D19: 9 | E19: 1 | F19: =SUM(D19*E19) -> 9 | G19: 0.313 | H19: =SUM(F19*G19) -> 3
A21: 1775.10(c)(9) | B21: Indirect Cost Rate Agreement | C21: Written | D21: 9 | E21: 1 | F21: =SUM(D21*E21) -> 9 | G21: 1.250 | H21: =SUM(F21*G21) -> 11
A23: 1775.10(c)(10) | B23: Statement of Compliance , Title VI of Civil Rights Act of 1964 | C23: Written | D23: 9 | E23: 1 | F23: =SUM(D23*E23) -> 9 | G23: 1.625 | H23: =SUM(F23*G23) -> 15
A25: 1775.10 | B25: Statement Concerning Assistance Under the National Forest Service-Dependent Rural Communities Economic Diversification Act | C25: Written | D25: 9 | E25: 1 | F25: =SUM(D25*E25) -> 9 | G25: 1.625 | H25: =SUM(F25*G25) -> 15
A27: 1775.10(d)(1) | B27: Evidence of Legal Existence and Authority | C27: Written | D27: 9 | E27: 1 | F27: =SUM(D27*E27) -> 9 | G27: 0.313 | H27: =SUM(F27*G27) -> 3
A29: 1775.10(d)(3) | B29: Narrative | C29: Written | D29: 9 | E29: 1 | F29: 9 | G29: 2.500 | H29: =SUM(F29*G29) -> 23
A31: 1775.10(d)(8) | B31: Scope of Work | C31: Written | D31: 9 | E31: 1 | F31: 9 | G31: 15.000 | H31: =SUM(F31*G31) -> 135
A33: 1775.10(d)(6) | B33: Budget Justification | C33: Written | D33: 9 | E33: 1 | F33: 9 | G33: 12.500 | H33: =SUM(F33*G33) -> 113
A35: 1775.10(d)(4) | B35: Balance Sheets and latest Financial Information | C35: Written | D35: 9 | E35: 1 | F35: =SUM(D35*E35) -> 9 | G35: 1.250 | H35: =SUM(F35*G35) -> 11
A37: 1775.10(d)(7) | B37: Evidence of Financial Management System | C37: Written | D37: 9 | E37: 1 | F37: =SUM(D37*E37) -> 9 | G37: 3.125 | H37: =SUM(F37*G37) -> 28
B39: Sub-total | D39: 9 | F39: =SUM(F19:F38) -> 90 | H39: =SUM(H19:H38) -> 356
B40: Post-Application
A41: 1775.13 | B41: Grant Agreement | C41: RUS Guide 1775-1 | D41: 1 | E41: 1 | F41: =SUM(D41*E41) -> 1 | G41: 2.500 | H41: =SUM(F41*G41) -> 3
A43: 1775.2 | B43: Project Performance Report | C43: Written | D43: 1 | E43: 4 | F43: =SUM(D43*E43) -> 4 | G43: 15.000 | H43: =SUM(F43*G43) -> 60
A45: 1775.21 | B45: Audit | C45: Written | D45: 1 | E45: 1 | F45: =SUM(D45*E45) -> 1 | G45: 3.750 | H45: =SUM(F45*G45) -> 4
A47: 1775.21 | B47: Financial Statements | C47: Written | D47: 1 | E47: 1 | F47: =SUM(D47*E47) -> 1 | G47: 1.250 | H47: =SUM(F47*G47) -> 1
B49: Sub-total | D49: 1 | F49: =SUM(F41:F48) -> 7 | H49: =SUM(H41:H48) -> 68
B50: Items Cleared for this Package Combined Total | D50: 9 | F50: =F39+F49 -> 97 | H50: =H39+H49 -> 423
D51: Average Response Hours | G51: =H50/F50 -> 4.4
B53: Items Cleared Under Other OMB Docket Numbers
A55: 1775.10(c)(3) | B55: Certification Regarding Debarment, Suspension, and Other Responsibility Matters - Primary Covered Transactions | C55: AD-1047 (0505-0027) | D55: 9 | E55: 1 | F55: =SUM(D55*E55) -> 9 | G55: 0.313 | H55: =SUM(F55*G55) -> 3
A57: 1775.10(c)(5) | B57: Certification Regarding Debarment, Suspension, Ineligibility and Voluntary Exclusion - Lower Tier Transaction.” | C57: AD-1048 (0505-0027) | D57: 9 | E57: 1 | F57: =SUM(D57*E57) -> 9 | G57: 0.313 | H57: =SUM(F57*G57) -> 3
A59: 1775.10(c)(4) | B59: Certification Regarding Drug-Free Workplace Requirements (Grants) Alternative I - for Grantees Other Than Individuals | C59: AD-1049 (0505-0027) | D59: 9 | E59: 1 | F59: =SUM(D59*E59) -> 9 | G59: 0.313 | H59: =SUM(F59*G59) -> 3
J61: PAGE 1
B63: Representations Regarding Felony Conviction and Tax Delinquent Status for Corporate Applicants | C63: AD-3030 | D63: 9 | E63: 1 | F63: =SUM(D63*E63) -> 9 | G63: 0.313 | H63: =SUM(F63*G63) -> 3
C64: (0505-0025)
B66: Assurances Regarding Felony Conviction or Tax Delinquent Status for Corporate Applicants | C66: AD-3031 | D66: 9 | E66: 1 | F66: =SUM(D66*E66) -> 9 | G66: 0.625 | H66: =SUM(F66*G66) -> 6
C67: (0505-0025)
A70: 1775.10(c)(1) | B70: Application for Federal Assistance | C70: SF-424 | D70: 1 | E70: 1 | F70: 26 | G70: 0.938 | H70: =SUM(F70*G70) -> 24
A72: 1775.10(c)(2) | B72: Budget Information--Non-Construction Programs | C72: SF-424A | D72: 1 | E72: 1 | F72: 26 | G72: 3.750 | H72: =SUM(F72*G72) -> 98
A74: 1775.10(c)(2) | B74: Assurances--Non-construction Programs | C74: SF-424B | D74: 1 | E74: 1 | F74: 26 | G74: 0.313 | H74: =SUM(F74*G74) -> 8
A76: 1775.10(c)(8) | B76: Equal Opportunity Agreement | C76: RD 400-1 | D76: 9 | E76: 1 | F76: =SUM(D76*E76) -> 9 | G76: 0.213 | H76: =SUM(F76*G76) -> 2
C77: (0575-0018)
A79: 1775.10(c)(7) | B79: Assurance Agreement | C79: RD 400-4 | D79: 9 | E79: 1 | F79: =SUM(D79*E79) -> 9 | G79: 0.313 | H79: =SUM(F79*G79) -> 3
C80: (0575-0018)
A82: 1775.10(c)(11) | B82: Disclosure of Lobbying Activities | C82: SF LLL | D82: 9 | E82: 1 | F82: =SUM(D82*E82) -> 9 | G82: 0.313 | H82: =SUM(F82*G82) -> 3
C83: (4040-0013)
A85: 1775.18(a) | B85: Request for Advance or Reimbursement (Corporation) | C85: SF-270 | D85: 1 | E85: 12 | F85: =SUM(D85*E85) -> 12 | G85: 1.250 | H85: =SUM(F85*G85) -> 15
C86: (4040-0012)
B88: Federal Financial Report | C88: SF-425 | D88: 1 | E88: 4 | F88: =SUM(D88*E88) -> 4 | G88: 1.875 | H88: =SUM(F88*G88) -> 8
C89: (4040-0014)
B91: ACH Vendor/Miscellaneous Payment Enrollment Form | C91: SF-3881 | D91: 9 | E91: 1 | F91: =D91*E91 -> 9 | G91: 0.25 | H91: 3
C92: (1530-0069)
B94: Request for Obligation of Funds | C94: RD 1940-1 | D94: 9 | E94: 1 | F94: =D94*E94 -> 9 | G94: 0.25 | H94: 3
C95: (0570-0062)
A96: RUS Form 36 (07-91) | J96: Page __2__ of __2__

Sheet Sheet2

Sheet Sheet3
